bitfinex-derivatives/quotes_ETHF0:USTF0_20260128
["timestamp","ask_amount","ask_price","bid_price","bid_amount"]
[1769622238311,3.47510372,3017.2,3016.0,3.59302152]
[1769622238606,3.47510372,3017.5,3016.0,3.59302152]
[1769622238822,0.00251535,3017.5,3016.9,3.59302152]
[1769622239000,3.47510372,3018.8,3017.1,3.59302152]
[1769622239201,3.47510372,3019.0,3017.1,3.59302152]
[1769622239404,3.47510372,3019.0,3017.1,3.75896152]
[1769622239800,3.47510372,3019.4,3017.3,3.59302152]
[1769622240003,3.47510372,3019.4,3017.8,3.59302152]
[1769622240204,3.47510372,3019.0,3017.8,3.59302152]
[1769622240403,3.47510372,3019.0,3016.9,3.59302152]
[1769622240708,3.47510372,3018.8,3017.1,3.59302152]
[1769622241112,3.47510372,3018.8,3017.1,3.59632164]
[1769622241113,3.47919048,3018.8,3017.1,3.59632164]
[1769622246207,3.47510372,3018.7,3017.1,3.59632164]
[1769622246509,3.47510372,3018.7,3017.1,0.00330012]
[1769622247415,3.47510372,3018.7,3017.1,3.59632164]
[1769622250311,3.47510372,3018.7,3017.2,3.59302152]
[1769622250521,0.00408676,3018.8,3017.4,3.59302152]
[1769622250819,3.47919048,3018.8,3017.4,3.59302152]
[1769622251023,3.47510372,3020.6,3018.6,3.59302152]
[1769622251311,3.48371707,3021.1,3019.5,1.95568869]
[1769622251718,3.48371707,3021.1,3019.1,0.16583]
[1769622251908,3.47510372,3020.8,3019.1,0.00376734]
[1769622252109,3.32901163,3021.1,3018.4,3.318]
[1769622252110,3.47510372,3020.3,3018.4,3.318]
[1769622252711,3.47510372,3020.3,3018.4,4.99555111]
[1769622252919,3.47510372,3020.3,3018.5,1.67755111]
[1769622253117,3.47510372,3020.3,3018.5,1.68160486]
[1769622253317,3.47510372,3020.3,3018.5,0.00405375]
[1769622253913,3.204,3020.2,3018.5,0.00405375]
[1769622254119,3.47510372,3020.1,3018.5,0.00405375]
[1769622255517,3.47510372,3020.1,3017.7,3.318]
[1769622255518,3.47510372,3019.8,3017.7,3.318]
[1769622255719,3.47510372,3019.6,3017.7,3.318]
[1769622256319,3.47510372,3019.3,3017.0,0.16594]
[1769622256621,3.47510372,3019.3,3017.0,1.86414778]
[1769622257319,3.64092372,3019.3,3017.0,1.86414778]
[1769622257518,3.64092372,3019.3,3017.1,1.58600259]
[1769622257921,3.64092372,3019.3,3017.1,3.28161279]
[1769622258113,3.64092372,3019.3,3017.2,1.6956102]
[1769622258322,3.64092372,3019.3,3017.2,0.61909172]
[1769622258821,5.22694631,3018.9,3017.2,0.61909172]
[1769622259024,3.47510372,3018.8,3017.2,0.61909172]
[1769622259826,3.64095372,3018.8,3017.2,0.61909172]
[1769622260629,3.47510372,3018.3,3016.4,1.93939796]
[1769622260828,3.47510372,3018.1,3016.4,1.93939796]
[1769622261639,3.47510372,3018.1,3016.5,3.32166842]
[1769622264034,3.47510372,3018.1,3016.5,0.00366842]
[1769622265838,3.60245459,3017.8,3016.4,1.93939796]
[1769622266043,3.60245459,3017.8,3015.4,4.40873075]
[1769622266238,3.76835459,3017.8,3015.5,3.37821912]
[1769622266439,3.60245459,3017.6,3015.5,3.37821912]
[1769622266943,3.60245459,3017.6,3015.5,3.38242705]
[1769622267539,3.61663115,3017.5,3015.5,3.38242705]
[1769622268145,3.78255115,3017.5,3015.5,3.38242705]
[1769622268545,3.61663115,3017.1,3015.5,0.00420793]
[1769622268733,4.987,3017.6,3014.6,3.56830889]
[1769622268734,3.61663115,3016.2,3014.6,3.56830889]
[1769622268942,3.61663115,3016.0,3013.8,3.56830889]
[1769622269851,3.619529,3016.0,3014.5,3.56830889]
[1769622271848,3.619529,3016.0,3014.4,0.16609]
[1769622272147,3.619529,3016.0,3014.4,3.73439889]
[1769622272744,3.61663115,3017.1,3015.2,3.56830889]
[1769622273938,3.62063263,3017.1,3015.2,3.56830889]
[1769622275751,3.61663115,3016.8,3014.9,3.56830889]
[1769622275954,3.61663115,3016.5,3014.9,3.56830889]
[1769622277157,3.61663115,3016.3,3014.6,3.56830889]
[1769622277349,3.78262115,3016.3,3014.6,3.56830889]
[1769622277854,3.78262115,3016.3,3014.3,3.73439889]
[1769622278046,3.61663115,3016.3,3014.3,3.73439889]
[1769622278448,3.61663115,3016.0,3014.3,3.73439889]
[1769622278647,3.61663115,3015.7,3013.9,3.56830889]
[1769622279352,3.61663115,3015.5,3013.9,3.56830889]
[1769622283253,3.78266115,3015.5,3013.8,0.16864435]
[1769622283453,3.61663115,3015.1,3013.8,0.00252435]
[1769622286752,3.61663115,3014.8,3012.6,3.56830889]
[1769622286957,3.78270115,3014.8,3012.7,3.56830889]
[1769622287755,3.78505515,3014.8,3012.9,3.56830889]
[1769622288057,3.61898515,3014.8,3013.1,3.73446889]
[1769622295163,3.61898515,3014.8,3013.3,3.60900008]
[1769622296166,3.321,3015.3,3013.3,3.60900008]
[1769622296363,3.68590924,3015.6,3014.4,3.77509008]
[1769622296764,3.68590924,3015.6,3014.4,0.16609]
[1769622297162,3.68590924,3015.6,3014.1,3.60900008]
[1769622297364,3.68971965,3015.6,3013.8,8.87800008]
[1769622297865,3.68971965,3015.6,3013.9,3.60900008]
[1769622299360,3.68590924,3015.4,3013.9,3.60900008]
[1769622300160,3.68590924,3015.4,3013.8,5.43512]
[1769622300467,3.68590924,3015.4,3013.9,3.60900008]
[1769622302163,3.68590924,3015.4,3013.8,5.43512]
[1769622302359,3.68590924,3015.4,3013.9,3.60900008]
[1769622303057,3.68590924,3016.4,3014.7,3.60900008]
[1769622303265,3.68590924,3016.6,3015.4,3.60900008]
[1769622303569,3.68590924,3016.6,3015.3,0.16604]
[1769622303760,3.68590924,3016.6,3014.7,3.60900008]
[1769622304070,3.68851388,3016.6,3014.9,3.60900008]
[1769622305568,3.68590924,3016.4,3014.9,3.60900008]
[1769622306466,0.84819201,3017.3,3014.8,2.04]
[1769622306467,3.68590924,3017.3,3015.8,3.74004883]
[1769622306658,3.68590924,3017.6,3016.0,3.75635467]
[1769622307666,3.68831202,3017.6,3016.0,3.75635467]
[1769622309267,3.68831202,3017.6,3015.7,3.60900008]
[1769622309465,3.68590924,3017.4,3015.7,3.60900008]
[1769622309665,3.68590924,3017.4,3015.6,2.058]
[1769622310365,3.68590924,3017.4,3015.1,0.16605]
[1769622310566,3.68590924,3017.2,3014.9,3.32]
[1769622310765,3.68590924,3017.2,3014.9,6.92900008]
[1769622311067,3.68590924,3017.0,3015.0,3.60900008]
[1769622311461,3.68590924,3017.0,3014.9,3.32]
[1769622311660,3.68590924,3017.0,3015.0,3.60900008]
[1769622312068,3.68590924,3017.0,3015.1,0.16605]
[1769622312364,3.68590924,3017.0,3014.9,3.32]
[1769622312365,3.68590924,3017.0,3015.4,3.60900008]
[1769622312565,3.68590924,3017.0,3015.9,3.60900008]
[1769622313167,3.68590924,3017.5,3015.9,3.60900008]
[1769622313976,3.68590924,3017.5,3015.8,0.16601]
[1769622314477,3.68590924,3017.5,3015.2,5.67100008]
[1769622315771,3.68590924,3017.5,3015.3,3.60900008]
[1769622316964,3.68590924,3017.5,3015.5,3.77503008]
[1769622318274,3.68590924,3017.5,3015.7,3.60900008]
[1769622318878,3.68590924,3017.5,3015.6,0.16602]
[1769622319269,3.68590924,3017.5,3015.6,3.77502008]
[1769622320479,3.85182924,3017.5,3015.6,0.16602]
[1769622320678,3.85182924,3017.5,3015.3,3.60900008]
[1769622321079,3.68590924,3017.5,3015.0,2.062]
[1769622321277,3.68590924,3017.2,3015.1,3.60900008]
[1769622321973,3.68590924,3017.2,3015.0,2.22806]
[1769622321974,3.68590924,3016.9,3015.0,0.16606]
[1769622322680,3.85185924,3016.9,3015.0,0.16606]
[1769622323270,3.68590924,3016.7,3015.0,0.16606]
[1769622324583,3.68590924,3016.7,3015.0,3.77506008]
[1769622324881,3.68590924,3016.7,3015.5,3.69325155]
[1769622325083,3.50356718,3017.4,3015.5,3.69325155]
[1769622326183,3.50356718,3017.4,3015.6,0.16602]
[1769622326376,3.66949718,3017.4,3015.6,3.85927155]
[1769622326576,3.50356718,3017.3,3015.6,3.85927155]
[1769622326879,3.50356718,3017.8,3015.6,3.69325155]
[1769622327086,3.56140304,3018.2,3016.7,3.61931098]
[1769622327479,3.56140304,3018.2,3016.7,3.78527098]
[1769622327676,3.56140304,3018.2,3016.7,0.16596]
[1769622328082,3.56564366,3018.2,3016.7,0.16596]
[1769622329283,3.56564366,3018.2,3016.3,5.89293868]
[1769622329478,3.56564366,3018.2,3016.2,5.89293868]
[1769622329677,3.56564366,3018.2,3016.1,9.51224966]
[1769622329980,3.56564366,3018.2,3016.1,3.61931098]
[1769622331181,3.56140304,3018.0,3016.1,3.78531098]
[1769622331782,3.56140304,3018.0,3016.2,3.61931098]
[1769622336989,3.56140304,3018.0,3016.3,3.78529098]
[1769622337192,0.00424062,3018.2,3016.9,3.61931098]
[1769622337392,3.56564366,3018.2,3016.9,3.62330539]
[1769622339286,3.56564366,3018.2,3016.9,0.00399441]
[1769622340699,3.56140304,3018.0,3016.9,0.00399441]
[1769622343703,3.56140304,3017.8,3016.9,0.00399441]
[1769622343903,3.56140304,3017.8,3016.2,0.16599]
[1769622344403,3.56140304,3017.8,3016.4,3.61931098]
[1769622344805,3.56140304,3017.8,3016.4,3.62253109]
[1769622345804,3.56140304,3017.8,3016.6,3.61931098]
[1769622354208,3.56140304,3017.8,3016.5,0.16597]
[1769622354406,3.56140304,3017.8,3016.5,3.78528098]
[1769622359013,3.56140304,3017.8,3016.4,0.00322011]
[1769622361011,3.56140304,3017.8,3016.4,3.55941856]
[1769622361414,3.56140304,3017.8,3016.4,0.00322011]
[1769622361804,3.56140304,3017.8,3016.4,3.55941856]
[1769622362408,3.72730304,3017.8,3016.4,3.55941856]
[1769622364716,3.56140304,3017.8,3016.4,3.55941856]
[1769622365217,3.56140304,3017.8,3016.4,3.72539856]
[1769622365414,3.56140304,3017.8,3016.8,3.55619845]
[1769622365619,3.64802375,3018.1,3016.8,3.55619845]
[1769622366312,3.64802375,3018.1,3017.1,3.55619845]
[1769622366514,0.00424062,3018.2,3017.1,3.55619845]
[1769622367016,3.65226437,3018.2,3017.1,3.55619845]
[1769622374423,3.65226437,3018.2,3017.0,0.16595]
[1769622374625,3.65226437,3018.2,3017.0,3.72214845]
[1769622376422,0.00424062,3018.2,3017.3,3.55619845]
[1769622382927,0.00424062,3018.2,3017.5,3.55619845]
[1769622383137,3.64802375,3018.9,3017.7,3.55619845]
[1769622383326,3.64802375,3019.4,3017.8,3.55619845]
[1769622383528,3.64802375,3019.2,3017.8,3.55619845]
[1769622383831,3.64802375,3019.0,3017.8,3.55619845]
[1769622384135,3.65213891,3019.0,3017.9,0.1659]
[1769622385233,3.65213891,3019.0,3017.4,2.074]
[1769622385428,3.49045566,3018.7,3017.2,3.98955031]
[1769622387038,3.49045566,3018.7,3017.4,3.52336001]
[1769622387228,3.49045566,3018.7,3017.6,3.52336001]
[1769622388337,3.44995145,3019.0,3017.6,3.68927001]
[1769622393338,3.44995145,3019.0,3017.8,3.52336001]
[1769622394038,0.00411516,3019.0,3018.0,3.52336001]
[1769622395337,3.44995145,3019.0,3017.7,3.52336001]
[1769622396844,3.44995145,3019.0,3017.2,0.61909172]
[1769622396845,3.44583629,3018.8,3017.2,0.61909172]
[1769622397144,3.44583629,3018.6,3017.2,0.61909172]
[1769622397443,3.44583629,3018.6,3016.8,0.16596]
[1769622397444,3.44583629,3017.9,3016.4,10.50171806]
[1769622397645,3.44583629,3017.9,3016.5,3.52336001]
[1769622399240,3.44583629,3017.9,3016.4,3.32122011]
[1769622399440,3.44583629,3018.3,3016.5,3.68933001]
[1769622400348,3.44583629,3018.3,3016.7,3.52336001]
[1769622400545,3.44583629,3018.3,3016.9,3.52336001]
[1769622400851,3.44583629,3018.3,3016.9,3.68931001]
[1769622401758,3.44583629,3018.3,3017.1,3.52336001]
[1769622407260,3.44583629,3018.3,3017.4,3.52336001]
[1769622407751,3.44583629,3018.3,3017.4,3.68928001]
[1769622408060,3.44583629,3018.7,3017.6,3.52336001]
[1769622408359,3.44995145,3019.0,3017.6,3.68927001]
[1769622408755,3.44995145,3019.0,3017.8,3.52336001]
[1769622408959,0.00411516,3019.0,3018.1,3.52336001]
[1769622409652,0.00411516,3019.0,3018.3,3.52336001]
[1769622413666,3.44583629,3020.0,3018.5,3.52336001]
[1769622413867,3.5426053,3019.9,3018.7,3.52336001]
[1769622414060,3.54252507,3019.8,3018.7,3.52336001]
[1769622414266,3.44583629,3020.0,3018.7,3.52336001]
[1769622414468,3.44583629,3019.8,3018.7,3.52336001]
[1769622414659,3.44968086,3019.8,3018.7,3.52576378]
[1769622419560,0.00384457,3019.8,3018.7,3.52576378]
[1769622419766,0.00384457,3019.8,3019.1,3.5515651]
[1769622419965,0.0025603,3019.8,3019.1,3.5515651]
[1769622420465,0.0025603,3019.8,3019.4,3.5515651]
[1769622421366,2.0,3020.4,3019.7,3.7173651]
[1769622422167,2.0,3020.4,3019.1,3.7173951]
[1769622422168,3.40204753,3020.3,3019.1,3.7173951]
[1769622422463,3.40540316,3020.3,3018.8,3.5515651]
[1769622423872,3.40204753,3020.1,3018.7,0.00240377]
[1769622424069,3.40204753,3019.9,3018.7,0.00240377]
[1769622424373,3.40204753,3019.9,3018.7,3.55396887]
[1769622425463,3.40204753,3019.7,3018.4,3.5515651]
[1769622425665,3.40204753,3019.7,3018.0,3.5515651]
[1769622425870,0.00335563,3020.3,3018.0,3.5515651]
[1769622425871,3.40204753,3019.5,3018.0,3.5515651]
[1769622426066,3.40204753,3019.3,3018.0,3.5515651]
[1769622426371,3.40204753,3019.3,3017.4,3.5515651]
[1769622426567,3.40204753,3019.3,3017.4,3.5545681]
[1769622426768,3.40204753,3019.3,3017.7,3.5515651]
[1769622427270,3.40204753,3019.3,3017.7,3.7174751]
[1769622429577,3.40204753,3020.0,3018.5,3.7174251]
[1769622429875,6.91059037,3019.9,3018.5,3.7174251]
[1769622430075,3.40204753,3019.9,3018.5,3.7174251]
[1769622430277,3.40204753,3019.9,3018.7,3.5515651]
[1769622431171,3.40204753,3019.9,3018.6,0.16586]
[1769622431977,3.40204753,3019.9,3018.6,3.7174251]
[1769622432172,3.40204753,3019.9,3018.8,3.5515651]
[1769622435875,3.40204753,3019.9,3019.0,3.5515651]
[1769622436078,0.00335563,3020.3,3019.4,3.5515651]
[1769622436380,2.0,3020.4,3017.5,8.62418693]
[1769622436381,2.0,3020.4,3019.9,3.7173451]
[1769622437178,5.40204753,3020.4,3019.9,0.16578]
[1769622437381,2.00418685,3020.4,3019.9,3.72041401]
[1769622438277,2.00418685,3020.4,3019.9,0.16884891]
[1769622438482,2.00418685,3020.4,3019.9,3.72041401]
[1769622438682,3.40204753,3020.9,3019.9,3.72041401]
[1769622438879,0.00861335,3021.1,3020.2,3.5515651]
[1769622439578,3.41066088,3021.1,3020.2,3.5515651]
[1769622439777,3.41455072,3021.1,3020.2,3.5515651]
[1769622439981,3.41455072,3021.1,3019.9,0.00306891]
[1769622443179,3.41455072,3021.1,3019.9,3.55463401]
[1769622443385,3.41455072,3021.1,3018.5,3.317]
[1769622443386,3.40204753,3020.6,3018.7,3.5515651]
[1769622443983,3.40204753,3020.4,3018.7,3.5515651]
[1769622444186,3.40204753,3020.3,3018.7,3.5515651]
[1769622444382,3.40204753,3020.3,3018.7,3.55506038]
[1769622446488,3.67220786,3021.0,3019.6,3.48359336]
[1769622448488,8.47620786,3021.0,3019.6,3.48359336]
[1769622448787,3.39377495,3020.9,3019.6,3.48359336]
[1769622450589,0.16569,3021.7,3018.7,0.00349528]
[1769622450590,3.316,3022.1,3020.3,3.6060276]
[1769622450895,8.19477495,3022.0,3020.8,3.6060276]
[1769622451089,8.19477495,3022.0,3020.7,0.16574]
[1769622451090,3.39377495,3021.9,3020.7,0.16574]
[1769622451295,3.39377495,3021.8,3020.8,3.6060276]
[1769622451792,3.39715308,3021.8,3020.8,3.6060276]
[1769622452296,3.39377495,3022.7,3021.1,3.6060276]
[1769622452592,3.39377495,3022.5,3021.1,3.6060276]
[1769622452991,4.803,3022.4,3021.2,0.16571]
[1769622453189,11.51619691,3022.4,3021.3,3.6060276]
[1769622453390,3.39719691,3022.4,3021.3,3.6060276]
[1769622453589,8.19677495,3022.3,3021.3,3.6060276]
[1769622453787,8.19677495,3022.3,3021.2,0.16847336]
[1769622453788,3.39377495,3022.2,3021.2,0.16847336]
[1769622453989,3.39377495,3022.0,3021.2,0.16847336]
[1769622454495,2.882,3021.9,3021.2,0.00276336]
[1769622454696,3.39377495,3021.8,3020.9,3.6060276]
[1769622454992,1.58052869,3021.6,3019.0,3.6060276]
[1769622455189,3.39377495,3021.5,3019.8,3.6060276]
[1769622455385,3.39377495,3021.3,3019.6,3.7718276]
[1769622455589,3.39377495,3021.1,3019.7,3.7718276]
[1769622455795,8.118,3021.0,3019.7,3.7718276]
[1769622455991,3.39377495,3020.9,3019.7,3.7718276]
[1769622456494,4.527,3020.8,3019.7,3.7718276]
[1769622456695,3.39377495,3021.2,3019.7,3.7718276]
[1769622456889,3.39377495,3021.2,3019.9,3.6060276]
[1769622456890,4.735,3020.9,3019.9,3.6060276]
[1769622457388,8.12877495,3020.9,3019.9,3.6060276]
[1769622457590,3.39377495,3020.8,3019.8,0.16579]
[1769622458999,4.809,3020.7,3019.8,0.16579]
[1769622459887,3.39377495,3020.8,3019.8,3.7718176]
[1769622460195,3.39377495,3021.4,3019.9,0.16578]
[1769622460397,3.39377495,3021.2,3020.0,3.6060276]
[1769622461296,4.814,3021.1,3020.0,3.6060276]
[1769622461698,4.815,3021.0,3020.0,3.7718076]
[1769622461899,3.39377495,3021.2,3020.1,3.7717976]
[1769622462099,4.815,3021.1,3020.1,3.7717976]
[1769622462593,3.39377495,3021.2,3020.1,3.7717976]
[1769622462794,8.21177495,3021.0,3020.1,0.16577]
[1769622462995,8.21277495,3020.9,3020.1,0.16577]
[1769622463194,3.39377495,3020.8,3020.1,0.16577]
[1769622466504,4.819,3020.9,3020.1,0.16577]
[1769622466802,8.21277495,3020.9,3020.1,0.16577]
[1769622468405,3.39377495,3020.8,3019.6,0.00264121]
[1769622468603,3.39377495,3020.2,3018.9,3.7718676]
[1769622468811,3.39377495,3020.2,3018.9,0.16584]
[1769622469008,3.39377495,3020.0,3018.9,0.16584]
[1769622469609,3.39687615,3020.0,3018.9,0.16914614]
[1769622473510,3.39687615,3020.0,3018.9,0.00330614]
[1769622474510,3.39687615,3020.0,3018.5,0.16586]
[1769622474812,1.58052869,3019.9,3018.5,0.16586]
[1769622475019,3.36410241,3019.8,3018.5,0.16586]
[1769622475516,3.36410241,3019.6,3018.5,3.79607299]
[1769622475716,3.36410241,3019.6,3018.5,0.1682036]
[1769622478222,3.36410241,3018.9,3017.2,4.41289111]
[1769622478420,3.52994241,3018.9,3017.2,0.61909172]
[1769622478716,3.36410241,3018.7,3017.2,0.61909172]
[1769622478921,3.36410241,3018.5,3017.2,0.61909172]
[1769622479122,3.36410241,3018.5,3017.2,0.62273893]
[1769622479323,3.36410241,3018.3,3017.2,0.62273893]
[1769622479817,3.36410241,3018.1,3017.2,0.62273893]
[1769622481523,8.20410241,3018.0,3017.2,0.62273893]
[1769622481726,3.36410241,3018.0,3017.2,0.62273893]
[1769622482025,8.20510241,3018.0,3017.2,0.62273893]
[1769622482224,3.36410241,3017.9,3016.6,3.62786939]
[1769622482717,3.36410241,3017.9,3016.4,5.73324735]
[1769622483319,3.36410241,3017.9,3015.2,3.62786939]
[1769622483527,3.36410241,3017.9,3015.0,7.18049795]
[1769622483528,3.36410241,3016.8,3015.4,3.79389939]
[1769622483719,5.30910241,3016.8,3015.4,3.79389939]
[1769622483921,1.74644869,3017.4,3015.4,3.79389939]
[1769622483922,3.36410241,3016.7,3015.4,3.79389939]
[1769622484122,3.36410241,3017.1,3015.8,3.79387939]
[1769622484322,3.36656136,3017.1,3015.8,3.79706573]
[1769622486325,0.00245895,3017.1,3015.8,3.79706573]
[1769622486625,0.00245895,3017.1,3016.2,3.79385939]
[1769622488331,3.36656136,3017.1,3016.2,3.79385939]
[1769622488520,3.36410241,3017.0,3015.8,3.63105573]
[1769622488927,4.569,3017.0,3015.8,3.79706573]
[1769622489529,0.00245895,3017.1,3016.2,3.62786939]
[1769622493528,3.36656136,3017.1,3016.2,3.62786939]
[1769622493925,3.36656136,3017.1,3015.9,3.62786939]
[1769622494121,0.00245895,3017.1,3015.9,3.62786939]
[1769622494324,0.87400093,3019.0,3017.3,3.62786939]
[1769622494532,3.36410241,3019.1,3017.5,3.62786939]
[1769622494727,3.52994241,3019.0,3016.9,3.62786939]
[1769622494936,3.36410241,3018.8,3016.9,3.62786939]
[1769622495326,3.36657906,3018.8,3016.9,3.62786939]
[1769622495630,3.36410241,3018.6,3016.9,3.62786939]
[1769622496338,3.36410241,3018.4,3016.9,3.62786939]
[1769622498128,3.36410241,3018.3,3016.9,3.62786939]
[1769622498335,3.36410241,3018.3,3017.2,0.61909172]
[1769622498935,3.36410241,3018.3,3017.2,4.24696111]
[1769622499629,3.36410241,3018.3,3017.2,0.61909172]
[1769622500035,3.36410241,3018.3,3016.6,3.62786939]
[1769622502038,3.36410241,3018.2,3016.6,3.62786939]
[1769622503235,3.36410241,3018.2,3016.6,3.79382939]
[1769622504538,3.36410241,3018.0,3016.6,3.79382939]
[1769622504834,3.318,3018.5,3015.4,3.318]
[1769622504835,4.95641159,3019.2,3017.8,2.99682936]
[1769622505025,3.0651279,3019.8,3018.1,3.16270936]
[1769622505229,3.0651279,3019.6,3018.1,3.16270936]
[1769622505425,3.0651279,3019.4,3018.1,3.16270936]
[1769622506137,3.0680527,3019.4,3018.1,3.16648454]
[1769622507431,3.0680527,3019.4,3016.8,7.18049795]
[1769622507432,3.0680527,3019.4,3017.4,2.91708278]
[1769622507633,3.11804006,3019.2,3017.3,3.08301278]
[1769622507834,3.54433046,3019.1,3017.5,2.91708278]
[1769622508039,3.11804006,3019.2,3017.7,2.91708278]
[1769622508636,3.11804006,3019.2,3017.7,2.91965455]
[1769622512138,0.0029248,3019.4,3017.9,2.91708278]
[1769622512940,0.0029248,3019.4,3018.2,2.91708278]
[1769622513342,0.0029248,3019.4,3018.2,3.08296278]
[1769622519543,3.12096486,3019.4,3018.2,3.08296278]
[1769622521448,3.12096486,3019.4,3017.9,2.91708278]
[1769622527444,3.28678486,3019.4,3017.8,0.1659]
[1769622527749,3.28678486,3019.4,3017.8,3.08298278]
[1769622532355,3.11804006,3019.2,3017.8,3.08298278]
[1769622533453,3.11804006,3019.0,3017.7,0.00257177]
[1769622533859,3.11804006,3019.0,3017.7,2.91965455]
[1769622535057,2.14016208,3018.6,3017.1,2.23480845]
[1769622535357,2.14016208,3018.4,3017.1,2.23480845]
[1769622536058,2.14016208,3018.4,3017.1,2.23812375]
[1769622541053,2.30601208,3018.7,3017.1,2.23812375]
[1769622541848,2.14016208,3019.0,3017.4,2.40072845]
[1769622542854,2.30600208,3019.0,3017.4,2.23480845]
[1769622543453,2.14016208,3019.0,3017.4,2.40072845]
[1769622543650,2.14016208,3019.0,3017.6,2.23480845]
[1769622545759,2.14016208,3019.0,3017.5,0.16592]
[1769622546564,2.14016208,3018.8,3017.3,2.23480845]
[1769622547366,2.14016208,3018.6,3017.3,2.23480845]
[1769622548668,2.14016208,3018.9,3017.5,2.37264023]
[1769622550866,2.14016208,3018.9,3017.2,2.10946781]
[1769622551469,2.14016208,3018.7,3017.2,2.10946781]
[1769622551670,2.14016208,3018.5,3017.2,2.10946781]
[1769622556067,2.14016208,3018.3,3017.1,0.0033153]
[1769622556272,2.14016208,3018.1,3016.7,1.9137206]
[1769622557171,2.14016208,3018.0,3016.7,1.917442]
[1769622558377,2.14016208,3018.0,3017.2,0.61909172]
[1769622559179,2.14016208,3018.0,3017.2,2.41826968]
[1769622561480,2.14016208,3018.0,3017.2,0.61909172]
[1769622561780,2.14016208,3018.0,3017.2,0.48265077]
[1769622572191,2.14016208,3018.0,3017.2,1.68359503]
[1769622573989,2.14016208,3018.0,3017.2,0.48265077]
[1769622578600,2.14016208,3018.0,3017.3,0.97754789]
[1769622578800,2.14016208,3018.0,3017.3,2.03386072]
[1769622579099,2.14016208,3018.0,3017.3,0.97754789]
[1769622579294,1.50487832,3018.7,3017.6,0.97754789]
[1769622579598,0.8493378,3020.1,3017.9,2.03386072]
[1769622579599,4.852,3019.1,3017.9,2.03386072]
[1769622579805,1.50487832,3018.9,3017.9,2.03386072]
[1769622580694,1.50487832,3018.9,3017.9,0.97754789]
[1769622582289,1.50487832,3018.9,3017.9,2.03386072]
[1769622582695,1.50487832,3018.9,3018.0,0.85671244]
[1769622586509,1.50487832,3019.2,3018.2,0.77146315]
[1769622594413,1.50487832,3019.0,3018.2,0.77146315]
[1769622596213,0.0029248,3019.4,3018.3,0.16587]
[1769622596515,0.0029248,3019.4,3018.8,0.46392179]
[1769622598412,1.19338753,3019.6,3018.8,0.46392179]
[1769622599311,1.19673899,3019.6,3018.8,0.46392179]
[1769622601109,6.60046857,3020.8,3017.4,7.18049795]
[1769622601110,1.20342117,3021.0,3019.7,0.36690576]
[1769622601307,7.293779,3022.5,3019.7,0.36690576]
[1769622601308,1.20342117,3021.3,3020.7,1.05631283]
[1769622601508,1.20342117,3021.9,3020.7,1.05631283]
[1769622601711,1.20353131,3021.6,3020.7,1.05631283]
[1769622601910,1.20712041,3021.6,3020.7,0.00326042]
[1769622602217,5.003,3021.5,3020.7,0.00326042]
[1769622602716,1.19338753,3021.3,3020.3,0.1481767]
[1769622603205,1.19338753,3021.1,3020.3,0.1481767]
[1769622603404,2.24970036,3021.0,3020.0,0.1481767]
[1769622603614,1.19338753,3020.7,3020.0,0.00285827]
[1769622606013,5.003,3020.6,3020.0,0.09349376]
[1769622606218,1.19338753,3021.0,3020.0,0.09349376]
[1769622606418,4.072,3021.5,3020.0,0.09349376]
[1769622606419,6.19638753,3020.9,3020.0,0.09349376]
[1769622606606,1.19338753,3020.9,3020.0,0.09349376]
[1769622607610,1.19338753,3021.3,3020.0,0.09349376]
[1769622609820,5.003,3021.2,3020.0,0.09349376]
[1769622610122,5.88986611,3023.6,3020.9,0.16573]
[1769622610123,1.19338753,3022.3,3020.9,0.16573]
[1769622610310,5.003,3022.2,3020.9,0.16573]
[1769622610513,6.19638753,3022.2,3020.6,1.58171048]
[1769622610718,1.19343219,3022.5,3021.0,5.261]
[1769622611013,0.00414902,3022.5,3021.2,0.16571]
[1769622611216,6.19643219,3022.4,3021.2,0.16571]
[1769622611414,1.19343219,3022.3,3021.2,0.16571]
[1769622612321,5.003,3022.2,3021.4,0.1657]
[1769622612522,5.003,3022.4,3021.4,0.1657]
[1769622613360,5.003,3022.4,3021.0,5.261]
[1769622613361,1.19338753,3024.3,3022.7,0.16563]
[1769622613509,0.9507073,3025.0,3023.9,0.0492927]
[1769622613714,0.26827417,3026.4,3024.0,6.84071048]
[1769622613912,1.944,3027.3,3024.0,5.259]
[1769622613913,1.58171048,3026.1,3024.0,5.259]
[1769622614113,1.5854159,3026.1,3024.0,3.31761781]
[1769622614316,1.58171048,3025.5,3024.0,3.31761781]
[1769622614922,1.58171048,3025.0,3023.1,0.07695147]
[1769622615125,1.58171048,3025.5,3023.1,0.07695147]
[1769622615424,1.58171048,3025.6,3023.3,0.07695147]
[1769622615623,1.19338753,3025.5,3023.4,1.58171048]
[1769622615830,1.19338753,3025.5,3022.8,1.944]
[1769622615831,1.19338753,3025.5,3024.0,0.08167135]
[1769622616024,1.2060094,3026.0,3024.1,0.08167135]
[1769622616421,1.2060094,3026.0,3024.0,3.31811469]
[1769622616725,1.3714594,3026.0,3024.0,3.31811469]
[1769622617114,1.3714594,3026.0,3024.1,0.05702816]
[1769622617725,1.3714594,3026.0,3024.0,0.00411469]
[1769622618731,1.22483479,3025.8,3024.0,0.00411469]
[1769622619127,1.22483479,3025.6,3024.0,0.00411469]
[1769622622321,1.26044825,3025.4,3024.0,0.00411469]
[1769622622521,1.26044825,3025.4,3023.4,0.61909172]
[1769622622929,1.25961761,3025.2,3023.4,0.61909172]
[1769622623430,1.25961761,3025.1,3023.4,0.61909172]
[1769622623637,1.25961761,3025.0,3023.4,0.62222519]
[1769622624136,1.25781185,3024.9,3023.4,0.62222519]
[1769622626034,1.26300573,3024.7,3022.3,5.41966]
[1769622626934,1.26300573,3024.7,3022.4,0.16565]
[1769622627136,1.26300573,3024.7,3022.6,0.16564]
[1769622627628,1.26300573,3024.7,3022.8,0.16563]
[1769622629835,1.42853573,3024.7,3022.4,7.00469565]
[1769622630046,1.42853573,3024.7,3022.5,0.16564]
[1769622632033,1.42853573,3024.7,3022.6,0.16563]
[1769622632231,1.26834062,3024.2,3022.4,0.00334517]
[1769622632741,1.43389062,3024.2,3022.4,0.00334517]
[1769622635738,1.43389062,3024.2,3022.4,0.16899517]
[1769622636143,1.26834062,3024.2,3022.5,0.16564]
[1769622636348,1.26834062,3024.2,3022.6,0.16564]
[1769622639940,1.26834062,3024.2,3022.4,0.00334517]
[1769622640141,1.27617192,3023.9,3022.4,0.00334517]
[1769622640442,1.27932606,3023.9,3022.0,0.16567]
[1769622640849,1.27719774,3023.7,3022.0,0.16567]
[1769622641648,0.16558,3023.6,3022.0,0.16932576]
[1769622641837,1.27323817,3023.5,3022.0,0.00365576]
[1769622642043,1.43882817,3023.5,3022.0,0.00365576]
[1769622642548,1.27323817,3023.3,3022.0,0.00365576]
[1769622643246,1.27428629,3023.1,3022.0,0.00365576]